bitfinex/quotes_ETHUSD_20251012
["timestamp","ask_amount","ask_price","bid_price","bid_amount"]
[1760301490575,35.62640039,4153.4,4153.3,1e-08]
[1760301491115,35.13125239,4153.4,4153.3,1e-08]
[1760301491533,19.65059839,4153.4,4153.3,1e-08]
[1760301491844,37.67298539,4153.4,4153.3,1e-08]
[1760301492007,16.9953199,4153.0,4150.2,2.40947566]
[1760301492207,16.9953199,4153.0,4151.0,2.40905673]
[1760301492208,17.7343129,4153.0,4151.0,2.40905673]
[1760301492439,10.2577809,4153.0,4150.7,0.4532]
[1760301492614,12.7837439,4153.0,4150.8,2.40912148]
[1760301492819,12.7837439,4153.0,4151.0,0.6336]
[1760301493508,12.7837439,4153.0,4150.8,0.6336]
[1760301493708,18.7751149,4153.0,4150.8,0.6336]
[1760301493917,18.7751149,4153.0,4151.1,0.6336]
[1760301494138,18.7751149,4153.0,4150.9,0.6336]
[1760301494341,18.7751149,4153.0,4151.0,2.40905483]
[1760301494540,18.7751149,4153.0,4151.0,0.6336]
[1760301494843,21.3690529,4153.0,4151.4,2.40882042]
[1760301495054,6.8776059,4153.0,4150.9,2.40906549]
[1760301495353,6.8776059,4153.0,4150.4,0.6336]
[1760301495509,4.32795588,4152.9,4149.7,2.8630104]
[1760301495704,2.40898844,4151.2,4150.4,2.40935701]
[1760301495953,2.40900002,4151.1,4149.7,0.4532]
[1760301496153,2.40904258,4151.1,4149.7,0.4532]
[1760301496448,4.62385643,4151.2,4151.0,0.12]
[1760301496818,0.2949,4151.2,4151.0,0.12]
[1760301497050,2.3305,4151.7,4151.0,0.12]
[1760301497413,2.40892919,4151.3,4151.0,0.12]
[1760301497611,1.92,4151.5,4151.0,0.12]
[1760301497612,2.40881915,4151.5,4151.0,0.12]
[1760301497819,2.408717,4151.6,4151.0,0.12]
[1760301498035,0.2931,4151.4,4151.0,0.12]
[1760301498238,0.1156,4151.7,4151.0,0.12]
[1760301498545,2.40866032,4151.7,4151.3,0.12]
[1760301498836,2.40866032,4151.7,4150.3,0.6336]
[1760301498837,2.40892342,4151.3,4151.2,0.12]
[1760301499053,2.40892342,4151.3,4150.3,2.40946025]
[1760301499054,2.40895328,4151.2,4150.3,2.40946025]
[1760301499258,2.2114,4151.1,4150.3,2.40946025]
[1760301499553,0.2914,4151.1,4150.4,2.40939233]
[1760301499754,15.02623239,4152.4,4149.8,0.6356]
[1760301500056,2.40867079,4151.7,4150.9,2.40906114]
[1760301500265,2.40860287,4151.8,4150.4,0.6336]
[1760301500450,4.074118,4151.9,4150.8,2.40913557]
[1760301500650,2.40872428,4151.6,4150.9,2.40910832]
[1760301500853,0.2914,4151.8,4150.4,2.40940632]
[1760301501047,4.834667,4153.8,4151.1,2.40900002]
[1760301501271,4.834667,4153.8,4151.0,0.6336]
[1760301501272,0.2879,4153.7,4152.6,2.40810234]
[1760301501558,2.40742148,4153.9,4152.9,2.40791759]
[1760301501761,2.40755845,4153.6,4152.6,2.40812207]
[1760301502056,8.047905,4153.4,4151.9,2.40852035]
[1760301502225,2.40813329,4152.6,4151.8,2.40856774]
[1760301502660,4.32813329,4152.6,4151.8,2.40856774]
[1760301503027,2.40788005,4153.1,4152.0,2.40846735]
[1760301503234,2.40806083,4152.8,4152.0,2.40846735]
[1760301503560,4.32803022,4152.8,4151.8,2.40857858]
[1760301503784,0.2863,4153.3,4152.5,2.4081389]
[1760301504058,0.2863,4153.3,4151.1,2.40897111]
[1760301504059,5.125527,4152.8,4151.7,0.6336]
[1760301504229,0.2863,4152.7,4151.0,0.6336]
[1760301504430,0.2863,4152.7,4151.6,2.40866452]
[1760301504645,0.2863,4152.7,4151.9,2.40853287]
[1760301504849,0.2863,4152.7,4151.9,2.40852317]
[1760301505035,1.92,4152.6,4151.7,2.40862826]
[1760301505238,0.2863,4152.7,4151.8,2.40854709]
[1760301505447,0.2863,4152.7,4152.0,2.40842292]
[1760301505646,0.2863,4152.7,4152.0,2.40847035]
[1760301506042,1.92,4152.6,4151.6,2.40865459]
[1760301506364,2.2063,4152.7,4151.3,0.6336]
[1760301506580,2.2063,4152.7,4151.9,2.408488]
[1760301506782,0.2863,4152.7,4152.0,2.40846232]
[1760301506959,0.2863,4152.7,4151.9,2.40852978]
[1760301507165,7.91963,4152.2,4151.5,2.40875542]
[1760301507361,2.40834058,4152.3,4150.8,0.4532]
[1760301507362,4.3283205,4152.3,4150.8,0.4532]
[1760301507563,1.92,4151.9,4151.4,2.40878473]
[1760301507765,3.666338,4152.1,4151.4,2.40878473]
[1760301507956,1.92,4152.0,4151.4,2.40878473]
[1760301508376,2.2063,4153.3,4151.8,0.6336]
[1760301508556,1.92,4152.9,4150.7,0.4532]
[1760301508761,1.92,4152.7,4151.8,2.4085933]
[1760301509093,0.2863,4152.6,4152.2,0.12]
[1760301509893,2.2063,4152.6,4152.2,0.12]
[1760301510191,5.767713,4152.3,4152.2,0.12]
[1760301510380,3.947674,4152.3,4152.2,0.12]
[1760301510582,1.92,4152.3,4152.2,0.12]
[1760301510782,4.956013,4152.3,4152.2,0.12]
[1760301510956,1.92,4152.2,4149.6,2.40982436]
[1760301511158,2.40873477,4151.6,4150.1,2.40953142]
[1760301511491,2.40888075,4151.4,4151.1,0.12]
[1760301511658,1.92,4151.4,4151.1,0.12]
[1760301512006,2.40894199,4151.2,4151.1,0.12]
[1760301512362,2.69524199,4151.2,4151.1,0.12]
[1760301512597,4.61524199,4151.2,4151.1,0.12]
[1760301512762,2.583407,4151.7,4150.1,0.2147]
[1760301512969,1.92,4151.6,4150.8,2.40917253]
[1760301513197,1.92,4151.4,4150.8,2.40917253]
[1760301513490,3.466441,4151.5,4150.5,2.40930624]
[1760301513491,1.92,4151.2,4150.5,2.40930624]
[1760301513786,4.32898632,4151.2,4150.4,2.40939966]
[1760301513958,4.32902128,4151.1,4150.3,2.41145352]
[1760301514153,2.40900187,4151.1,4150.3,2.41145352]
[1760301514359,2.40900187,4151.1,4150.4,2.40940436]
[1760301514554,4.32895155,4151.2,4150.4,2.40940436]
[1760301514755,4.166927,4151.2,4150.7,2.40918664]
[1760301515005,4.32909969,4151.0,4150.3,0.002]
[1760301515459,4.32909969,4151.0,4150.3,2.41146181]
[1760301515659,1.92,4151.0,4150.3,0.002]
[1760301515854,18.194591,4150.8,4150.3,0.002]
[1760301516088,5.54698,4150.5,4150.3,0.002]
[1760301516259,11.97160232,4150.4,4150.3,0.002]
[1760301516456,6.87695432,4150.4,4150.3,0.002]
[1760301516654,4.467548,4150.4,4150.3,0.002]
[1760301516885,5.877734,4151.1,4150.3,0.002]
[1760301517088,2.2063,4150.4,4150.3,0.002]
[1760301517391,7.32635432,4150.4,4150.3,0.002]
[1760301517588,4.61570632,4150.4,4150.3,0.002]
[1760301517765,2.2063,4150.4,4150.3,0.002]
[1760301518207,0.2863,4150.8,4150.3,0.002]
[1760301518707,1.92,4151.2,4150.3,0.002]
[1760301518877,0.2863,4151.4,4150.3,0.002]
[1760301519083,0.2863,4151.4,4150.3,0.6356]
[1760301519278,0.2863,4151.4,4150.3,0.002]
[1760301519614,0.2863,4151.4,4150.9,2.409065]
[1760301520194,1.92,4151.4,4150.6,2.40927559]
[1760301520394,2.40940632,4150.4,4150.3,0.002]
[1760301520591,2.40905805,4151.0,4150.3,0.002]
[1760301520793,2.2063,4150.9,4150.3,0.002]
[1760301520993,0.2863,4152.1,4150.5,0.6336]
[1760301521399,0.2863,4152.1,4150.4,0.4561]
[1760301521400,0.2863,4152.1,4150.9,0.6336]
[1760301521619,9.848051,4152.8,4151.6,2.40869573]
[1760301521795,9.848051,4152.8,4151.7,2.4086395]
[1760301521796,1.92,4152.3,4151.7,2.4086395]
[1760301521994,5.754876,4152.6,4151.7,2.40865187]
[1760301522290,0.2863,4152.7,4150.9,0.4561]
[1760301522615,2.175876,4152.6,4152.2,2.40835327]
[1760301522781,0.001,4153.4,4152.3,2.86436578]
[1760301522983,0.001,4153.4,4152.8,0.6336]
[1760301523197,0.001,4153.4,4152.8,3.04161387]
[1760301523396,0.001,4153.4,4152.8,3.49771387]
[1760301527021,0.001,4153.4,4152.8,3.04161387]
[1760301527195,0.001,4153.4,4152.8,0.6336]
[1760301527384,0.001,4153.4,4152.1,2.40841818]
[1760301527585,0.2848,4153.3,4151.5,2.85652908]
[1760301527789,1.92,4153.2,4151.6,2.40870989]
[1760301528028,2.185402,4152.8,4152.2,2.40831578]
[1760301528228,2.185402,4152.8,4150.5,2.40931645]
[1760301528229,4.105402,4152.8,4151.9,2.40852234]
[1760301528403,0.2858,4152.9,4151.4,2.40881837]
[1760301528404,8.451973,4152.3,4151.4,2.40881837]
[1760301528604,1.92,4152.1,4151.1,2.40896928]
[1760301528910,1.92,4152.1,4151.4,2.40881832]
[1760301529111,2.40842478,4152.1,4150.6,2.40929022]
[1760301529293,0.2858,4152.9,4150.7,2.85703217]
[1760301529488,2.40807515,4152.7,4150.8,0.4478]
[1760301529689,1.92,4152.8,4151.1,0.6336]
[1760301529891,0.001,4152.9,4151.6,0.6336]
[1760301530090,2.179083,4152.8,4152.3,2.40827199]
[1760301530318,0.001,4152.9,4152.4,2.40823985]
[1760301530518,0.001,4152.9,4152.4,2.40824457]
[1760301530712,0.001,4152.9,4152.1,2.40839585]
[1760301530911,0.001,4152.9,4152.3,2.40825076]
[1760301531103,0.001,4152.9,4151.9,2.40853585]
[1760301531424,0.001,4152.9,4151.7,1.0814]
[1760301531425,1.92,4152.7,4151.7,1.0814]
[1760301531598,4.32821482,4152.5,4150.4,0.4478]
[1760301531799,1.92,4151.9,4150.4,0.4478]
[1760301532114,0.2848,4151.9,4151.0,2.40905464]
[1760301532302,2.175373,4151.8,4151.2,2.40894107]
[1760301532498,2.40859698,4151.8,4150.9,2.40906737]
[1760301532709,2.40859698,4151.8,4150.5,0.6336]
[1760301532710,2.40875916,4151.6,4150.8,2.40914941]
[1760301532914,4.32853585,4151.9,4150.4,0.4478]
[1760301532915,3.125869,4151.9,4151.7,0.12]
[1760301533120,3.125869,4151.9,4150.4,0.4478]
[1760301533121,2.40859386,4151.8,4151.0,2.4090448]
[1760301533298,2.40859386,4151.8,4150.4,0.4478]
[1760301533299,2.40859386,4151.8,4151.1,2.40899946]
[1760301533647,2.40865471,4151.7,4151.0,2.40904568]
[1760301533927,2.40865471,4151.7,4150.3,3.04503942]
[1760301533928,4.32864368,4151.8,4150.9,2.40911113]
[1760301534126,2.40864368,4151.8,4151.0,2.40903618]
[1760301534326,1.92,4151.5,4150.3,0.6356]
[1760301534630,1.92,4151.3,4150.3,2.41145722]
[1760301534800,2.02197,4151.1,4150.3,0.002]
[1760301535137,9.971516,4150.4,4150.3,0.002]
[1760301535429,12.38092232,4150.4,4150.3,0.002]
[1760301535599,12.66572232,4150.4,4150.3,0.002]
[1760301535800,7.44286732,4150.4,4150.3,0.002]
[1760301536198,9.32179332,4150.4,4150.3,0.002]
[1760301536663,9.03234432,4150.4,4150.3,0.002]
[1760301537002,1.92,4150.4,4150.3,0.002]
[1760301537204,9.89911532,4150.4,4150.3,0.002]
[1760301537720,4.325674,4150.4,4150.3,0.002]
[1760301537927,4.155014,4150.4,4150.3,0.002]
[1760301538124,4.439814,4150.4,4150.3,0.002]
[1760301538439,9.18754432,4150.4,4150.3,0.002]
[1760301538641,8.01714332,4150.4,4150.3,0.002]
[1760301539303,4.61420632,4150.4,4150.3,0.002]
[1760301540038,7.43863432,4150.4,4150.3,0.002]
[1760301540341,6.71965332,4150.4,4150.3,0.002]
[1760301540512,6.62670332,4150.4,4150.3,0.002]
[1760301540718,4.535748,4150.4,4150.3,0.002]
[1760301540905,6.94515432,4150.4,4150.3,0.002]
[1760301541505,32.57728532,4150.4,4150.3,0.002]
[1760301542036,4.72755,4150.4,4150.3,0.002]
[1760301542348,1.92,4150.4,4150.3,0.002]
[1760301542726,0.2848,4150.8,4150.4,2.40938786]
[1760301543044,0.2848,4151.1,4150.7,0.12]
[1760301543333,2.40900211,4151.1,4150.7,0.12]
[1760301543539,0.12,4151.4,4150.7,0.12]
[1760301543723,0.12,4151.4,4150.3,0.002]
[1760301543724,2.69349899,4151.7,4151.3,0.12]
[1760301543902,0.2848,4151.7,4151.3,0.12]
[1760301544113,0.2848,4151.6,4150.7,2.40918578]
[1760301544406,6.42710791,4151.5,4151.4,0.12]
[1760301544614,2.2048,4151.5,4151.4,0.12]
[1760301544814,11.165213,4151.5,4151.4,0.12]
[1760301545003,13.57398091,4151.5,4151.4,0.12]
[1760301545313,1.92,4151.4,4150.3,0.002]
[1760301545729,2.252828,4150.9,4150.3,0.002]
[1760301545924,1.92,4150.6,4150.3,0.002]
[1760301546533,4.32907636,4151.0,4150.3,0.002]
[1760301546739,0.2848,4150.6,4150.3,0.002]
[1760301547031,4.32940632,4150.4,4150.3,0.002]
[1760301547236,10.90334132,4150.4,4150.3,0.002]
[1760301547412,1.92,4151.0,4150.3,0.002]
[1760301547616,4.32907406,4151.0,4150.3,0.002]
[1760301548013,0.2848,4151.1,4150.3,0.002]
[1760301548014,1.92,4150.6,4150.3,0.002]
[1760301548220,2.40918063,4150.8,4150.3,0.002]
[1760301548433,5.22378,4150.4,4150.3,0.002]
[1760301548739,29.56253232,4150.4,4150.3,0.002]
[1760301548956,17.48152632,4150.4,4150.3,0.002]
[1760301549238,1.92,4150.4,4150.3,0.002]
[1760301550008,1.92,4150.4,4150.3,2.41146437]
[1760301552242,0.2848,4152.3,4150.4,0.6336]
[1760301552551,3.876751,4152.2,4150.5,2.40934827]
[1760301552756,2.025801,4152.2,4151.8,2.40857838]
[1760301552971,0.001,4152.9,4152.4,2.40824423]
[1760301552972,0.2858,4152.9,4152.4,2.40824423]
[1760301553110,0.001,4152.9,4152.0,0.6336]
[1760301553444,0.001,4152.9,4152.8,2.40801387]
[1760301553744,0.001,4152.9,4152.8,3.04161387]
[1760301554047,0.001,4152.9,4152.8,3.50501387]
[1760301554953,0.001,4152.9,4151.9,0.4634]
[1760301555112,0.001,4152.9,4152.0,0.6336]
[1760301555317,0.001,4152.9,4152.8,2.52801387]
[1760301555836,0.001,4152.9,4152.8,3.16161387]
[1760301556042,0.001,4152.9,4152.8,2.52801387]
[1760301556556,0.001,4152.9,4152.8,3.16161387]
[1760301556764,0.001,4152.9,4152.8,3.62501387]
[1760301557055,0.001,4152.9,4152.8,3.50501387]
[1760301557942,0.001,4152.9,4151.4,0.4634]
[1760301558246,0.001,4152.9,4152.8,2.40801387]
[1760301558431,0.001,4152.9,4152.8,3.04161387]
[1760301558631,0.001,4152.9,4152.8,3.50501387]
[1760301559145,0.001,4153.4,4153.3,3.04132397]
[1760301559653,0.001,4153.4,4153.3,3.50472397]
[1760301562258,0.437,4153.4,4152.8,2.40798063]
[1760301562559,5.379083,4153.3,4151.9,0.4634]
[1760301562752,1.92,4153.2,4151.9,0.4634]
[1760301562923,1.92,4153.2,4152.5,2.40818698]
[1760301563118,2.40772816,4153.3,4152.2,2.40835085]
[1760301563319,2.40772816,4153.3,4151.2,0.4634]
[1760301563320,2.40790832,4153.0,4151.2,0.4634]
[1760301563564,1.92,4152.6,4151.3,2.40887876]
[1760301563856,1.92,4152.6,4151.2,0.4634]
[1760301564023,1.92,4152.4,4150.6,0.4634]
[1760301564352,1.92,4152.4,4151.6,2.40870065]
[1760301564517,4.32825247,4152.4,4151.6,2.40870065]
[1760301565948,1.92,4152.1,4151.5,2.40876489]
[1760301566247,1.92,4152.3,4151.7,2.4086087]
[1760301566429,0.436,4152.5,4151.8,2.40859358]
[1760301566619,1.92,4152.4,4151.7,2.40864347]
[1760301567028,1.92,4152.4,4152.2,0.12]
[1760301567345,2.356,4152.3,4152.2,0.12]
[1760301567548,0.436,4152.3,4152.2,0.12]
[1760301568460,2.356,4152.3,4152.2,0.12]
[1760301568628,2.40801593,4152.8,4152.2,0.12]
[1760301568833,0.436,4153.0,4151.1,0.4634]
[1760301569046,2.40825222,4152.4,4151.6,2.40866528]
[1760301569243,0.436,4152.3,4151.6,2.40866528]
[1760301569458,0.436,4152.3,4151.5,2.40875439]
[1760301569772,2.4084231,4152.1,4150.6,0.4634]
[1760301569975,2.40848534,4152.0,4150.6,0.4634]
[1760301570260,2.40848534,4152.0,4151.3,2.40887763]
[1760301570440,2.40843146,4152.1,4151.4,2.40882578]
[1760301571265,2.40843146,4152.1,4151.6,0.002]
[1760301571567,0.436,4152.0,4151.6,0.002]
[1760301571730,2.356,4152.0,4151.6,0.002]
[1760301572057,0.436,4151.9,4151.6,0.002]
[1760301572270,0.32024826,4153.4,4151.6,0.002]
[1760301572271,2.059702,4152.6,4151.8,2.40856191]
[1760301572429,0.436,4152.5,4151.6,0.002]
[1760301572625,1.92,4152.3,4151.6,0.002]
[1760301572842,3.84713,4152.2,4151.6,2.41068776]
[1760301573059,2.470752,4152.2,4151.6,2.41068776]
[1760301573254,0.436,4152.5,4151.6,0.002]
[1760301573255,1.92,4152.4,4151.6,0.002]
[1760301573477,0.436,4152.5,4151.6,0.002]
[1760301573768,0.436,4152.5,4151.9,2.40850234]
[1760301573970,4.132702,4152.4,4151.6,0.002]
[1760301574138,1.92,4152.2,4151.6,2.41070359]
[1760301574355,1.92,4152.2,4151.6,2.41069223]
[1760301574560,5.70213,4152.2,4151.6,2.41069223]
[1760301574881,4.7644229,4152.1,4151.6,0.002]
[1760301575081,2.40857797,4151.9,4151.6,0.002]
[1760301575565,0.436,4151.8,4151.6,0.002]
[1760301575767,1.92,4151.7,4151.6,0.002]
[1760301576086,4.76465187,4151.7,4151.6,0.002]
[1760301576861,0.436,4151.7,4151.6,0.002]
[1760301577061,2.84465187,4151.7,4151.6,0.002]
[1760301577561,4.76465187,4151.7,4151.6,0.002]
[1760301577885,1.92,4151.7,4151.6,0.002]
[1760301578113,2.843063,4152.9,4151.7,2.40865187]
[1760301578262,2.40816851,4152.6,4151.9,2.40848219]
[1760301578456,6.46203421,4152.6,4151.9,2.40850028]
[1760301578650,1.92,4152.4,4151.8,2.40857843]
[1760301578891,1.92,4152.2,4151.6,0.002]
[1760301579054,2.40865187,4151.7,4151.6,0.002]
[1760301579458,13.50845387,4151.7,4151.6,0.002]
[1760301579675,12.50279487,4151.7,4151.6,0.002]
[1760301580159,10.28178187,4151.7,4151.6,0.002]
[1760301580584,18.14420987,4151.7,4151.6,0.002]
[1760301580756,17.84570587,4151.7,4151.6,0.002]
[1760301580957,33.31252805,4151.7,4151.6,0.002]
[1760301581202,31.27606205,4151.7,4151.6,0.002]
[1760301581387,30.38056205,4151.7,4151.6,0.002]
[1760301581571,35.76440105,4151.7,4151.6,0.002]
[1760301582174,36.12059904,4151.7,4151.6,0.002]
[1760301582603,45.52267704,4151.7,4151.6,0.002]
[1760301582996,45.8419253,4151.7,4151.6,0.002]
[1760301583402,21.71570796,4151.3,4151.2,1e-08]
[1760301583711,30.56605221,4151.3,4151.2,1e-08]
[1760301583909,31.00205221,4151.3,4151.2,1e-08]
[1760301584407,33.04271609,4150.9,4150.8,0.002]
[1760301584608,33.04271609,4150.9,4149.8,0.002]
[1760301584609,1.92,4150.7,4149.8,0.002]
[1760301584810,4.96300632,4150.4,4149.8,0.002]
[1760301585113,35.63845257,4150.4,4149.8,0.002]
[1760301585288,4.60092,4150.4,4149.8,0.002]
[1760301585630,9.92831132,4150.4,4149.8,0.002]
[1760301586678,26.57558432,4150.4,4149.8,0.002]
[1760301586884,20.49738732,4150.4,4149.8,0.002]
[1760301587210,15.46551932,4150.4,4149.8,0.002]
[1760301587508,16.45531731,4150.4,4149.8,0.002]
[1760301587679,36.07445257,4150.4,4149.8,0.002]
[1760301587883,19.534624,4149.9,4149.8,0.002]
[1760301588079,39.80584078,4149.9,4149.8,0.002]
[1760301588289,40.23984078,4149.9,4149.8,0.002]
[1760301588811,21.33881678,4149.9,4149.8,0.002]
[1760301589012,33.05046378,4149.9,4149.8,0.002]
[1760301589628,17.5836416,4149.9,4149.8,0.002]
[1760301589834,18.8852276,4149.9,4149.8,0.002]
[1760301590033,18.6530916,4149.9,4149.8,0.002]
[1760301590437,12.7823806,4149.9,4149.8,0.002]
[1760301590933,15.8911016,4149.9,4149.8,0.002]
[1760301591246,16.21034986,4149.9,4149.8,0.002]
[1760301591421,2.41021932,4149.0,4148.9,0.002]
[1760301591609,2.41021932,4149.0,4146.2,2.41184256]
[1760301591610,38.46091318,4148.6,4146.2,2.41184256]
[1760301591813,2.41091663,4147.8,4145.5,0.465]
[1760301592016,21.39322,4147.4,4145.2,2.41238398]
[1760301592205,2.41161433,4146.6,4145.5,2.4122531]
[1760301592531,1.92,4146.7,4145.3,2.41236586]
[1760301592721,0.4268,4147.3,4145.8,2.41205911]
[1760301592921,0.2197,4147.9,4146.3,2.41178509]
[1760301593120,1.92,4147.7,4146.8,2.41146168]
[1760301593334,0.2121,4148.3,4146.7,3.04515617]
[1760301593522,2.1321,4148.3,4146.7,0.6336]
[1760301593725,0.2121,4148.3,4147.5,2.41104569]
[1760301593930,0.2121,4148.3,4146.7,3.04514013]
[1760301593931,0.2121,4148.3,4147.4,2.41113682]
[1760301594118,0.4343,4148.2,4147.6,2.41102683]
[1760301594315,0.4343,4148.2,4147.5,2.41103769]
[1760301594613,0.4343,4148.2,4147.8,2.41088351]
[1760301594940,0.4343,4148.2,4147.0,2.41133662]
[1760301595241,0.4343,4148.2,4147.7,2.41093115]
[1760301595910,0.4343,4148.2,4147.6,2.41102051]
[1760301596110,0.4343,4148.2,4146.7,0.6336]
[1760301596312,0.4343,4148.2,4146.9,2.41138944]
[1760301596608,0.4365,4149.4,4148.7,2.41035562]
[1760301596813,0.4365,4149.4,4147.8,0.465]
[1760301597014,1.92,4149.3,4147.9,2.4108585]
[1760301597233,1.92,4149.3,4148.6,2.41044931]
[1760301597431,1.92,4149.3,4148.4,2.41052371]
[1760301597636,4.33010239,4149.3,4148.4,2.41052371]
[1760301597834,2.41010603,4149.2,4147.8,0.465]
[1760301598149,1.92,4149.0,4148.2,2.4106578]
[1760301598545,2.41021932,4149.0,4147.5,2.41109101]
[1760301598734,1.92,4149.0,4148.3,2.41062484]
[1760301599041,1.92,4148.9,4147.5,2.41109101]
[1760301599241,1.92,4149.0,4148.4,2.4105668]
[1760301599807,1.92,4149.0,4148.3,2.410612]
[1760301600008,0.4343,4148.9,4148.3,2.410612]
[1760301600419,0.4343,4148.9,4146.9,0.6336]
[1760301600420,0.4343,4148.9,4148.4,2.41056018]
[1760301600658,1.92,4149.4,4148.6,2.41039451]
[1760301600943,2.40999662,4149.4,4148.7,2.41037899]
[1760301601147,2.40999662,4149.4,4147.6,2.41099512]
[1760301601148,0.4343,4149.4,4147.0,2.41138172]
[1760301601312,1.92,4149.1,4147.4,2.41114915]
[1760301601511,15.72254447,4150.6,4146.7,2.41153769]
[1760301601512,0.12,4150.3,4149.7,2.40979965]
[1760301601745,0.1247,4149.8,4148.1,2.41073293]
[1760301601932,0.1247,4149.8,4147.9,0.465]
[1760301601933,0.4281,4149.7,4148.0,0.6336]
[1760301602137,0.4281,4149.7,4149.0,2.41020908]
[1760301602647,0.4281,4149.7,4148.1,0.2365]
[1760301602811,2.4099812,4149.5,4148.6,2.41042388]
[1760301603016,4.32988105,4149.6,4148.8,2.41032524]
[1760301603218,2.3481,4149.7,4148.9,2.41025868]
[1760301603527,0.4281,4150.3,4148.7,2.87534968]
[1760301603848,2.40958352,4150.1,4148.7,0.465]
[1760301604148,2.40958352,4150.1,4149.2,2.41009808]
[1760301604322,0.4251,4150.0,4148.7,0.465]
[1760301604553,2.3451,4150.0,4148.7,0.465]
[1760301604755,0.1307,4149.9,4148.3,2.41062166]
[1760301604943,0.4251,4150.0,4148.4,0.465]
[1760301605443,0.4251,4150.0,4149.4,2.40993619]
[1760301605644,0.4251,4150.0,4149.5,2.40990477]
[1760301605862,0.4221,4151.1,4149.0,0.465]
[1760301606066,2.40921446,4150.8,4149.2,2.41010315]
[1760301606265,15.40819273,4151.9,4149.4,0.6336]
[1760301606266,0.74134826,4151.9,4149.4,0.6336]
[1760301606463,0.74134826,4151.9,4148.1,15.32544447]
[1760301606464,2.40870989,4151.6,4148.8,0.465]
[1760301606673,2.40927019,4150.7,4148.9,0.6336]
[1760301606839,0.4221,4150.6,4148.9,0.6336]
[1760301607040,0.4221,4151.1,4149.2,2.41010315]
[1760301607366,2.3421,4151.1,4150.3,2.40945457]
[1760301607562,2.83110236,4151.1,4149.5,2.4099289]
[1760301607775,0.4221,4151.1,4150.6,2.40924314]
[1760301608067,4.32889405,4151.3,4150.6,2.40924511]
[1760301608242,4.32889405,4151.3,4149.4,2.40998698]
[1760301608243,2.493,4150.5,4148.8,0.465]
[1760301608445,0.4221,4150.6,4148.9,0.6336]
[1760301608765,0.001,4150.0,4149.9,2.40969661]
[1760301610975,0.001,4150.0,4149.9,2.84829661]
[1760301611273,0.001,4150.5,4150.4,3.04300632]
[1760301611644,0.001,4150.5,4150.4,3.60160632]
[1760301611850,0.001,4150.5,4150.4,2.96800632]
[1760301613601,0.001,4150.5,4150.4,2.40940632]
[1760301613993,0.001,4150.5,4150.3,2.40943662]
[1760301614194,0.001,4150.5,4150.4,2.40940632]
[1760301618407,0.001,4150.5,4150.4,2.84800632]
[1760301620008,0.001,4150.5,4150.4,2.40940632]
[1760301620211,0.001,4150.5,4149.8,0.2206]
[1760301620511,0.001,4150.5,4150.4,3.04300632]
[1760301620681,0.001,4150.9,4150.5,0.6336]
[1760301620876,0.001,4150.9,4150.8,2.40917413]
[1760301621283,0.001,4150.9,4150.8,2.84777413]
[1760301621521,0.001,4150.9,4150.8,3.48137413]
[1760301621976,0.001,4150.9,4150.0,0.4386]
[1760301622414,0.001,4150.9,4149.5,0.4386]
[1760301622581,0.001,4150.9,4149.4,0.2206]
[1760301622779,0.001,4150.9,4150.6,2.40925544]
[1760301622979,0.4241,4150.9,4150.1,2.40956597]
[1760301623229,1.92,4150.8,4150.2,2.40952237]
[1760301623400,2.40920256,4150.8,4150.1,2.40956527]
[1760301623709,2.40920256,4150.8,4150.7,0.12]
[1760301623932,4.75230256,4150.8,4150.7,0.12]
[1760301624083,1.92,4150.7,4148.9,0.4386]
[1760301624419,2.40949605,4150.3,4148.9,0.4386]
[1760301624581,2.40941303,4150.4,4150.3,0.12]
[1760301624984,4.75251303,4150.4,4150.3,0.12]
[1760301625915,0.001,4150.9,4150.0,0.2206]
[1760301626111,0.001,4150.9,4148.5,0.4386]
[1760301626112,1.92,4150.7,4148.5,0.4386]
[1760301626313,0.4231,4150.8,4150.1,0.002]
[1760301626612,0.001,4150.8,4150.1,0.002]
[1760301626838,2.40934827,4150.5,4150.1,0.002]
[1760301627055,0.001,4150.8,4150.1,0.002]
[1760301627056,1.92,4150.3,4150.1,0.002]
[1760301627340,0.4231,4150.4,4150.1,0.002]
[1760301627341,7.34962243,4150.2,4150.1,0.002]
[1760301627562,2.40975468,4149.8,4149.7,0.002]
[1760301627703,16.03314368,4149.8,4149.7,0.002]
[1760301627903,16.03314368,4149.8,4149.3,0.002]
[1760301627904,24.34061198,4149.4,4149.3,0.002]
[1760301628113,24.52077998,4149.4,4149.3,0.002]
[1760301628319,24.93897998,4149.4,4149.3,0.002]
[1760301628518,8.07963398,4149.4,4149.3,0.002]
[1760301629241,7.32140698,4149.4,4149.3,0.002]
[1760301629405,2.3382,4149.4,4149.3,0.002]
[1760301630019,4.74818698,4149.4,4149.3,0.002]
[1760301630421,2.3382,4149.4,4149.3,0.002]
[1760301631225,4.74818698,4149.4,4149.3,0.002]
[1760301631621,2.3382,4149.4,4149.3,0.002]
[1760301631824,4.74818698,4149.4,4149.3,0.002]
[1760301632027,8.39768698,4149.4,4149.3,0.002]
[1760301633000,28.77242298,4149.4,4149.3,0.002]
[1760301633223,4.74818698,4149.4,4149.3,0.002]
[1760301633634,7.01257398,4149.4,4149.3,0.002]
[1760301633935,6.98859098,4149.4,4149.3,0.002]
[1760301634101,7.30760798,4149.4,4149.3,0.002]
[1760301634551,1.92,4149.4,4149.3,0.002]
[1760301635744,2.3382,4149.4,4149.3,0.002]